bitfinex-derivatives/quotes_ETHF0:USTF0_20241023
["timestamp","ask_amount","ask_price","bid_price","bid_amount"]
[1729712670414,0.39845,2512.4,2512.2,24.39846]
[1729712670614,0.39845,2512.3,2512.2,24.0]
[1729712670805,4.77245381,2512.3,2512.2,0.39847]
[1729712671112,4.77245381,2512.3,2512.1,0.39848]
[1729712671113,0.39845,2512.3,2512.1,0.39848]
[1729712671310,0.39845,2512.3,2512.1,0.39849]
[1729712671311,0.39848,2512.2,2512.1,0.39849]
[1729712671509,0.39847,2512.2,2512.0,0.3985]
[1729712671706,0.39849,2512.1,2512.0,0.3985]
[1729712671912,0.39849,2512.1,2511.9,27.11]
[1729712671913,4.77248381,2512.2,2511.9,27.11]
[1729712672104,5.60648781,2512.1,2511.9,3.5085]
[1729712672305,5.60648781,2512.1,2511.7,3.2078]
[1729712672306,0.3985,2512.0,2511.7,7.8228]
[1729712672514,0.6665,2512.1,2511.7,6.3178]
[1729712672705,4.54149781,2512.0,2511.9,0.39852]
[1729712673213,4.94000781,2512.0,2511.9,0.39852]
[1729712673410,4.54149781,2512.0,2511.9,0.39852]
[1729712677320,4.93999781,2512.0,2511.9,0.39852]
[1729712677521,4.54149781,2512.0,2511.9,0.39852]
[1729712678214,4.54149781,2512.0,2511.9,4.37932]
[1729712678422,3.8768,2512.4,2512.3,0.39845]
[1729712678610,0.6628,2512.8,2512.7,0.39839]
[1729712678611,3.8706,2512.8,2512.7,0.39839]
[1729712678813,4.95499,2512.8,2512.7,0.39839]
[1729712679007,9.37364618,2512.8,2512.7,0.39839]
[1729712679410,8.97525618,2512.8,2512.3,0.39845]
[1729712679616,8.97525618,2512.8,2512.7,0.39839]
[1729712679917,9.37363618,2512.8,2512.7,0.39839]
[1729712680220,16.78525618,2512.8,2512.0,4.6228]
[1729712680516,0.39843,2512.5,2512.0,4.6228]
[1729712680720,12.80525618,2512.8,2512.3,0.39845]
[1729712680922,4.5207455,2512.4,2512.0,4.6228]
[1729712681119,4.5207455,2512.4,2512.3,0.39845]
[1729712681120,0.39845,2512.4,2512.3,0.39845]
[1729712681417,0.39847,2512.2,2512.1,0.39848]
[1729712681618,0.686,2512.3,2512.0,3.2078]
[1729712681922,0.39849,2512.1,2512.0,3.6063]
[1729712682118,0.686,2512.3,2512.0,3.2078]
[1729712682318,0.686,2512.3,2512.0,3.60629]
[1729712682518,0.39849,2512.1,2512.0,3.60629]
[1729712682715,0.39849,2512.1,2512.0,3.2078]
[1729712682915,0.39849,2512.1,2511.3,3.2078]
[1729712682916,1.99253,2512.0,2511.3,3.2078]
[1729712683220,0.3986,2511.4,2511.3,3.2078]
[1729712683623,10.00308033,2511.4,2511.0,24.0]
[1729712683826,0.39864,2511.1,2511.0,24.0]
[1729712684017,0.39864,2511.2,2511.1,0.39864]
[1729712684224,4.82599314,2511.1,2511.0,24.0]
[1729712684525,4.42735314,2511.2,2511.0,24.0]
[1729712684715,4.9708795,2511.1,2511.0,24.0]
[1729712685230,0.39864,2511.1,2511.0,24.39866]
[1729712685423,4.9708795,2511.1,2511.0,24.39866]
[1729712685732,4.9708795,2511.1,2511.0,24.0]
[1729712686122,4.9708795,2511.1,2510.9,3.2078]
[1729712686123,0.39866,2511.0,2510.9,3.2078]
[1729712686522,4.7760541,2511.0,2510.9,27.2078]
[1729712687125,4.3773941,2511.0,2510.9,27.2078]
[1729712687323,4.7760541,2511.0,2510.9,27.60648]
[1729712687529,0.39865,2511.1,2510.9,27.2078]
[1729712687827,4.17252395,2511.0,2510.9,27.60648]
[1729712688329,0.39865,2511.1,2511.0,0.39866]
[1729712688624,4.57117395,2511.1,2511.0,0.39866]
[1729712688829,0.39866,2511.0,2510.9,24.39866]
[1729712689129,4.57598335,2511.0,2510.9,24.39866]
[1729712689831,4.57598335,2511.0,2510.9,24.0]
[1729712690121,4.57598335,2511.0,2510.9,24.39868]
[1729712690721,4.17732335,2511.0,2510.9,24.39868]
[1729712690922,4.57598335,2511.0,2510.9,24.39868]
[1729712691123,4.57598335,2511.0,2510.9,24.0]
[1729712691124,0.39866,2511.0,2510.9,24.0]
[1729712691344,4.86909189,2511.0,2510.9,24.0]
[1729712691924,4.47043189,2511.0,2510.9,24.39868]
[1729712692326,4.58486675,2511.1,2511.0,0.39866]
[1729712692630,0.39864,2511.1,2511.0,0.39866]
[1729712692831,4.14783746,2511.1,2511.0,0.39866]
[1729712694119,4.54647746,2511.1,2511.0,0.39866]
[1729712694326,4.54647746,2511.1,2510.9,24.0]
[1729712694630,4.14783746,2511.1,2510.9,24.0]
[1729712694842,4.54649746,2511.1,2511.0,0.39866]
[1729712696122,4.14783746,2511.1,2511.0,0.39866]
[1729712697525,4.14783746,2511.1,2511.0,1.09236]
[1729712699634,4.14783746,2511.1,2511.0,0.39866]
[1729712699831,4.54647746,2511.1,2511.0,0.39866]
[1729712700428,4.54647746,2511.1,2510.9,24.0]
[1729712700429,0.39866,2511.0,2510.9,24.0]
[1729712700629,0.9967,2510.9,2510.3,4.30146]
[1729712700835,0.39876,2510.4,2510.3,5.10956]
[1729712701039,7.35842834,2510.8,2510.0,0.7027]
[1729712701338,0.39875,2510.5,2510.4,0.39875]
[1729712701738,4.24842834,2510.5,2510.4,0.39875]
[1729712702235,1.3356,2511.0,2510.9,0.39868]
[1729712702236,1.73427,2511.0,2510.9,0.39868]
[1729712702440,1.3356,2511.0,2510.9,0.39868]
[1729712702640,4.45024875,2510.7,2510.6,0.39872]
[1729712702843,5.78584875,2511.0,2510.9,0.39868]
[1729712703138,1.3356,2511.0,2510.9,0.39868]
[1729712703344,5.73128101,2511.0,2510.9,0.39868]
[1729712705047,6.12994101,2511.0,2510.9,0.39868]
[1729712705437,6.12994101,2511.0,2510.3,3.83]
[1729712705438,13.54368101,2511.0,2510.2,3.2078]
[1729712705638,13.54368101,2511.0,2510.2,0.39878]
[1729712705639,0.39879,2510.3,2510.2,0.39878]
[1729712705838,0.39879,2510.2,2510.1,24.0]
[1729712706136,1.72659,2510.2,2510.1,24.0]
[1729712706349,6.12227101,2510.2,2510.1,24.0]
[1729712706944,5.72348101,2510.2,2510.1,24.3988]
[1729712708444,5.72348101,2510.2,2510.1,24.0]
[1729712708737,6.12227101,2510.2,2510.1,24.0]
[1729712709145,10.10627101,2510.2,2510.1,24.0]
[1729712710035,0.39882,2510.0,2509.9,3.2078]
[1729712710442,8.91781977,2510.0,2509.9,3.60664]
[1729712711249,8.91781977,2510.0,2509.7,24.39885]
[1729712711250,0.39885,2509.8,2509.7,24.39885]
[1729712711542,0.39885,2509.8,2509.7,24.0]
[1729712711543,4.89986609,2509.8,2509.7,24.0]
[1729712711844,0.39891,2509.5,2509.4,0.3989]
[1729712712046,8.48581609,2509.8,2509.5,0.39888]
[1729712712047,0.39889,2509.6,2509.5,0.39888]
[1729712712248,0.39889,2509.6,2509.5,24.0]
[1729712712540,8.90447369,2509.6,2509.5,24.3989]
[1729712712752,8.90447369,2509.6,2509.5,24.0]
[1729712712942,9.55597369,2509.6,2509.5,24.0]
[1729712713741,0.39894,2509.3,2509.2,0.39894]
[1729712714047,4.95935515,2509.3,2509.2,0.39894]
[1729712714249,4.95935515,2509.3,2509.2,24.0]
[1729712714250,8.94495515,2509.3,2509.2,24.0]
[1729712714436,8.94495515,2509.3,2508.7,3.2078]
[1729712714437,0.39896,2509.2,2508.7,3.2078]
[1729712714640,0.39896,2509.2,2508.9,0.39898]
[1729712714641,0.7157,2509.2,2508.9,0.39898]
[1729712714837,4.95939515,2509.1,2509.0,24.0]
[1729712715341,8.94497515,2509.1,2509.0,0.39898]
[1729712715844,8.54601515,2509.1,2509.0,0.39898]
[1729712716241,4.56041515,2509.1,2509.0,0.39898]
[1729712716451,4.56041515,2509.1,2509.0,7.59238]
[1729712716947,4.56041515,2509.1,2509.0,31.59238]
[1729712717142,3.71191515,2509.1,2509.0,31.59238]
[1729712717354,0.6765,2509.7,2509.6,0.39888]
[1729712717651,4.29616973,2509.5,2509.4,0.39892]
[1729712718148,0.6765,2509.7,2509.6,0.39888]
[1729712718344,1.07538,2509.7,2509.5,0.39889]
[1729712718545,4.61048727,2509.6,2509.5,0.39889]
[1729712718747,0.39888,2509.6,2509.5,0.39889]
[1729712719051,4.61273152,2509.6,2509.5,0.39889]
[1729712719457,5.01161152,2509.6,2509.5,0.39889]
[1729712720456,4.61273152,2509.6,2509.5,0.39889]
[1729712720754,5.01161152,2509.6,2509.5,0.39889]
[1729712721362,8.99641152,2509.6,2509.5,0.39889]
[1729712722247,4.61273152,2509.6,2509.5,0.39889]
[1729712722550,8.99642152,2509.6,2509.5,0.3989]
[1729712722849,4.61273152,2509.6,2509.5,0.3989]
[1729712723246,4.19008116,2509.7,2509.6,0.39888]
[1729712723443,4.19008116,2510.0,2509.6,27.60668]
[1729712723656,1.3435,2510.1,2510.0,0.39882]
[1729712724049,9.88735052,2510.1,2510.0,0.39882]
[1729712724948,4.55985052,2510.1,2510.0,0.39882]
[1729712726061,4.55985052,2510.1,2509.6,24.99719]
[1729712726062,8.38985052,2510.1,2509.6,24.0]
[1729712726247,4.22886,2509.8,2509.7,0.39887]
[1729712726452,0.39886,2509.8,2509.7,0.39887]
[1729712726647,4.86184814,2509.8,2509.7,0.39887]
[1729712726863,0.39887,2509.7,2509.6,24.39887]
[1729712727163,4.70120057,2509.7,2509.6,24.39887]
[1729712727356,8.68600057,2509.7,2509.6,24.0]
[1729712727654,0.39891,2509.5,2509.4,0.39891]
[1729712727847,3.83,2509.5,2508.9,0.7135]
[1729712728048,0.39895,2509.2,2509.1,0.39895]
[1729712728452,0.39895,2509.2,2509.0,24.0]
[1729712728453,0.39896,2509.1,2509.0,24.39897]
[1729712728653,4.77694499,2509.2,2509.1,0.39896]
[1729712728958,4.77694499,2509.1,2509.0,24.39897]
[1729712729149,0.39896,2509.1,2509.0,24.39897]
[1729712729352,4.54529456,2509.1,2509.0,24.39897]
[1729712729753,4.14633456,2509.1,2509.0,24.39897]
[1729712729949,4.14633456,2509.1,2509.0,24.0]
[1729712730150,4.54529456,2509.1,2509.0,24.39898]
[1729712730359,4.54529456,2509.1,2509.0,24.0]
[1729712730750,4.54529456,2509.1,2509.0,24.39898]
[1729712731352,4.54529456,2509.1,2509.0,24.0]
[1729712731952,0.99745,2509.0,2508.5,0.7135]
[1729712732153,3.83,2508.8,2508.2,1.67936]
[1729712732355,0.39902,2508.8,2508.7,0.39901]
[1729712732649,4.5886422,2508.8,2508.7,0.39901]
[1729712734257,4.1896222,2508.8,2508.7,0.39901]
[1729712734661,4.29095,2509.2,2509.1,0.39896]
[1729712734861,4.3582932,2508.8,2508.7,0.39903]
[1729712735059,0.39897,2509.1,2508.7,24.6587]
[1729712735258,4.7572632,2509.1,2509.0,0.39898]
[1729712735461,4.7572632,2509.1,2508.7,24.6587]
[1729712735462,4.29096,2509.2,2509.1,0.39896]
[1729712735661,0.39897,2509.1,2509.0,0.39897]
[1729712736056,4.68491981,2509.1,2509.0,0.39897]
[1729712736372,0.39901,2508.8,2508.7,24.0]
[1729712736764,8.67135981,2508.8,2508.7,24.0]
[1729712736957,8.67135981,2508.8,2508.7,24.39903]
[1729712737157,8.67135981,2508.8,2508.7,24.0]
[1729712738161,8.27234981,2508.8,2508.6,0.39904]
[1729712738362,4.28594981,2508.8,2508.4,3.2078]
[1729712738562,0.39906,2508.6,2508.5,0.39905]
[1729712738766,0.39906,2508.6,2508.5,24.39905]
[1729712738965,4.21183324,2508.6,2508.5,24.39905]
[1729712739363,1.11952,2508.8,2508.5,24.39905]
[1729712739364,4.61087324,2508.7,2508.6,0.39904]
[1729712739563,0.7205,2508.8,2508.5,24.0]
[1729712739775,4.21183324,2508.7,2508.5,24.0]
[1729712739968,4.61087324,2508.7,2508.6,0.39903]
[1729712740268,4.21183324,2508.7,2508.5,24.0]
[1729712740477,4.93674,2508.6,2508.5,24.0]
[1729712740765,9.50482208,2508.6,2508.5,24.0]
[1729712741065,9.50482208,2508.6,2508.5,24.39906]
[1729712741770,4.56808208,2508.6,2508.5,24.39906]
[1729712742173,4.46780891,2508.7,2508.6,0.39904]
[1729712742370,7.0378,2508.9,2508.7,0.39903]
[1729712742371,4.46780891,2508.8,2508.7,0.39903]
[1729712742566,1.3844,2509.1,2509.0,0.39898]
[1729712742567,4.5377,2509.1,2509.0,0.39898]
[1729712742765,3.83,2509.1,2509.0,0.39898]
[1729712743068,8.38708074,2509.1,2509.0,0.39898]
[1729712743663,8.78604074,2509.1,2509.0,0.39898]
[1729712743873,8.38708074,2509.1,2509.0,0.39898]
[1729712744070,8.78604074,2509.1,2509.0,0.39898]
[1729712745864,8.78604074,2509.1,2508.8,0.709]
[1729712745865,8.38708074,2509.1,2508.8,0.709]
[1729712746066,1.07819,2509.0,2508.9,0.39898]
[1729712746468,0.39901,2508.9,2508.8,0.399]
[1729712746866,4.71989264,2508.9,2508.8,0.399]
[1729712747075,0.39904,2508.7,2508.6,0.39903]
[1729712747274,0.39902,2508.8,2508.7,0.39901]
[1729712747463,3.83,2508.9,2508.5,24.668]
[1729712747780,0.399,2508.9,2508.8,0.39901]
[1729712748165,4.56888189,2508.9,2508.8,0.39901]
[1729712748875,4.16988189,2508.9,2508.8,0.39901]
[1729712749076,4.56887189,2508.9,2508.8,0.39901]
[1729712751576,0.99757,2508.7,2508.0,3.2078]
[1729712751777,0.39909,2508.4,2508.3,0.39908]
[1729712751972,8.68782773,2508.6,2508.5,0.39906]
[1729712752171,4.16735,2508.6,2508.5,0.39906]
[1729712752373,8.68782773,2508.6,2508.5,0.39906]
[1729712752773,8.28877773,2508.6,2508.3,22.9]
[1729712752978,0.39907,2508.4,2508.3,23.29908]
[1729712753172,8.28877773,2508.6,2508.3,22.9]
[1729712753478,0.39907,2508.5,2508.4,0.39906]
[1729712753776,4.99553806,2508.5,2508.4,0.39906]
[1729712753973,0.39907,2508.4,2508.3,23.29908]
[1729712754175,3.50907,2508.4,2508.3,23.29908]
[1729712754375,8.56996175,2508.4,2508.3,23.29908]
[1729712755074,0.39909,2508.3,2508.2,1.03096744]
[1729712755269,4.45465976,2508.3,2508.2,1.03096744]
[1729712755474,8.69300371,2508.3,2508.2,1.03096744]
[1729712756085,8.62383395,2508.3,2508.2,1.03096744]
[1729712756276,8.69300473,2508.3,2508.2,1.03096744]
[1729712756878,7.51531473,2508.3,2508.1,0.39912]
[1729712757091,7.51531473,2508.3,2508.0,0.39912]
[1729712757092,0.39913,2508.1,2508.0,0.39912]
[1729712757382,4.79383781,2508.1,2508.0,0.39912]
[1729712758681,8.38190781,2508.1,2507.5,1.3581]
[1729712758893,0.39917,2507.9,2507.8,0.39916]
[1729712759387,5.01482284,2507.9,2507.8,0.39916]
[1729712759775,4.61565284,2507.9,2507.6,22.9]
[1729712759980,0.39918,2507.8,2507.7,0.39917]
[1729712760281,4.37198824,2507.8,2507.7,0.39919]
[1729712761782,4.77115824,2507.8,2507.7,0.39919]
[1729712761986,5.09568824,2507.8,2507.6,22.9]
[1729712762185,5.09568824,2507.8,2507.7,0.39919]
[1729712762584,5.49485824,2507.8,2507.7,0.39919]
[1729712762779,0.39919,2507.7,2507.6,22.9]
[1729712762979,3.50919,2507.7,2507.6,23.2992]
[1729712763185,7.90413669,2507.7,2507.6,22.9]
[1729712763584,7.90413669,2507.7,2507.6,23.2992]
[1729712763780,7.50494669,2507.7,2507.6,23.2992]
[1729712763983,4.39494669,2507.7,2507.6,27.2872]
[1729712764391,4.45559168,2508.2,2507.6,27.5527]
[1729712764579,4.5296,2508.3,2507.8,0.99792]
[1729712764779,4.5296,2508.3,2508.2,0.39911]
[1729712765091,3.2078,2508.7,2508.6,0.39904]
[1729712765291,6.3178,2508.7,2508.6,0.39904]
[1729712765481,0.3444646,2508.3,2508.2,0.3991]
[1729712765680,0.39912,2508.2,2508.1,0.39912]
[1729712765877,4.5296,2508.2,2507.8,0.6647]
[1729712766086,0.39913,2508.1,2508.0,0.39913]
[1729712766294,0.39915,2507.9,2507.8,1.06386]
[1729712766476,4.61919988,2508.1,2508.0,0.39914]
[1729712766682,0.39912,2508.1,2508.0,0.39914]
[1729712766878,4.5296,2508.2,2508.1,0.39912]
[1729712767293,4.25351602,2508.2,2508.1,4.38632]
[1729712767978,4.25351602,2508.2,2508.1,5.04782]
[1729712768591,4.25351602,2508.2,2508.1,4.38632]
[1729712770392,3.2078,2508.6,2508.5,0.39906]
[1729712770583,0.7076,2508.7,2508.2,1.66987]
[1729712770783,3.60678,2509.0,2508.8,0.39901]
[1729712770991,3.2078,2509.0,2508.9,0.39899]
[1729712771296,8.03316895,2509.0,2508.9,0.39899]
[1729712771491,7.63418895,2509.0,2508.9,0.39899]
[1729712771892,8.03316895,2509.0,2508.9,0.39899]
[1729712772287,7.63418895,2509.0,2508.9,0.39899]
[1729712773490,3.2078,2509.4,2508.9,4.38459]
[1729712773684,3.2078,2509.4,2509.3,0.39893]
[1729712773893,7.73194805,2509.4,2509.3,0.39893]
[1729712774094,7.73194805,2509.4,2509.3,23.29893]
[1729712774293,7.73194805,2509.4,2509.3,22.9]
[1729712774493,8.13086805,2509.4,2509.3,22.9]
[1729712774702,0.39896,2509.1,2509.0,0.39897]
[1729712774885,0.39896,2509.1,2508.7,0.6715]
[1729712774886,3.11,2509.1,2508.7,0.6715]
[1729712775089,3.11,2508.8,2508.7,22.9]
[1729712775390,3.11,2508.8,2508.7,23.29903]
[1729712775996,0.6642,2508.9,2508.7,26.8864]
[1729712776298,0.6642,2508.9,2508.8,0.39901]
[1729712776700,4.98822827,2508.9,2508.8,0.39901]
[1729712778094,5.38721827,2508.9,2508.8,0.39901]
[1729712778288,4.98822827,2508.9,2508.8,0.39901]
[1729712778788,4.32402827,2508.9,2508.8,0.39901]
[1729712779696,4.72301827,2508.9,2508.8,0.39901]
[1729712779996,4.32402827,2508.9,2508.7,22.9]
[1729712780400,0.39901,2508.8,2508.7,23.29901]
[1729712780697,0.39906,2508.5,2508.4,0.39906]
[1729712781000,0.39907,2508.4,2508.3,3.60688]
[1729712781198,1.07827,2508.4,2508.3,3.60688]
[1729712781407,5.30257772,2508.4,2508.3,3.2078]
[1729712781700,5.30257772,2508.4,2508.3,3.60689]
[1729712782198,4.90350772,2508.4,2508.3,3.60689]
[1729712782500,5.30257772,2508.4,2508.3,3.60689]
[1729712782706,5.30257772,2508.4,2508.3,3.2078]
[1729712783193,8.88990772,2508.4,2508.1,22.9]
[1729712783399,8.88990772,2508.4,2507.7,0.7024]
[1729712783400,1.39693,2508.1,2507.7,0.39918]
[1729712783697,6.3178,2508.2,2507.5,1.495]
[1729712783698,0.3992,2507.7,2507.6,0.39919]
[1729712784101,0.3992,2507.7,2507.5,1.89421]
[1729712784102,0.3992,2507.6,2507.5,1.89421]
[1729712784300,0.39922,2507.5,2507.4,3.2078]
[1729712784495,3.11,2507.5,2506.9,0.7049]
[1729712784797,3.11,2507.2,2506.9,0.7049]
[1729712785000,3.11,2507.2,2507.1,0.39928]
[1729712785394,7.7127998,2507.2,2507.1,0.39928]
[1729712785596,7.7127998,2507.2,2506.8,3.2078]
[1729712785797,3.5093,2507.0,2506.9,0.39931]
[1729712786094,0.39935,2506.7,2506.5,3.60717]
[1729712786302,3.11,2506.6,2506.5,3.60717]
[1729712786601,4.52526185,2506.6,2506.5,0.39937]
[1729712786808,4.52526185,2506.6,2506.5,4.38897]
[1729712787302,4.52526185,2506.6,2506.5,27.28897]
[1729712789594,4.52526185,2506.6,2506.5,23.29937]
[1729712789803,3.11,2506.6,2506.5,23.29937]
[1729712790104,7.48654598,2506.6,2506.5,23.29937]
[1729712790599,4.37654598,2506.6,2506.5,23.29937]
[1729712790900,3.11,2506.8,2506.5,22.9]
[1729712790901,4.37654598,2506.7,2506.5,22.9]
[1729712791200,3.50928,2507.2,2506.6,0.39936]
[1729712791407,3.11,2507.0,2506.9,0.3993]
[1729712791600,7.67802482,2507.0,2506.9,0.3993]
[1729712791808,3.11,2507.0,2506.9,0.39931]
[1729712792109,3.11,2507.2,2506.6,0.99839]
[1729712792305,4.36955867,2507.0,2506.6,0.99839]
[1729712792605,7.47955867,2507.2,2507.1,0.39928]
[1729712792801,3.11,2507.2,2507.1,0.39928]
[1729712792996,7.47955867,2507.2,2507.1,0.39928]
[1729712793606,4.36955867,2507.2,2507.1,0.39928]
[1729712796893,7.87882867,2507.2,2506.7,3.8915]
[1729712797099,3.11,2507.0,2506.9,0.39931]
[1729712797497,7.64462415,2507.0,2506.9,0.39931]
[1729712797697,4.53462415,2507.0,2506.9,0.39931]
[1729712798102,4.53462415,2507.1,2506.7,0.6837]
[1729712798309,3.11,2507.2,2507.0,0.39929]
[1729712798508,4.39665982,2507.1,2506.8,0.99833]
[1729712798704,4.39665982,2507.1,2507.0,0.3993]
[1729712799008,7.50665982,2507.2,2507.1,0.39927]
[1729712799204,3.50927,2507.2,2507.1,0.39927]
[1729712799503,7.57189657,2507.2,2507.1,0.39927]
[1729712799696,7.97116657,2507.2,2507.1,0.39927]
[1729712799896,7.57189657,2507.2,2507.1,0.39927]
[1729712800208,7.57189657,2507.2,2506.7,1.68205]
[1729712800209,7.57189657,2507.2,2506.7,0.6837]
[1729712800409,0.39929,2507.1,2507.0,0.39929]
[1729712800707,4.6431903,2507.1,2507.0,0.3993]
[1729712801007,0.3993,2507.0,2506.9,0.39931]
[1729712801209,4.6431903,2507.1,2507.0,0.3993]
[1729712801412,4.27824609,2507.0,2506.7,0.99835]
[1729712801615,4.67752609,2507.1,2507.0,0.3993]
[1729712801805,0.39928,2507.1,2507.0,0.3993]
[1729712802001,3.11,2507.2,2506.6,2.49139]
[1729712802002,3.11,2507.2,2507.1,0.39928]
[1729712802202,3.2078,2507.3,2507.2,0.39927]
[1729712802601,7.72993383,2507.3,2507.2,0.39927]
[1729712802912,4.52213383,2507.3,2507.2,0.39927]
[1729712803404,4.89215941,2507.6,2507.5,0.39922]
[1729712803610,0.3992,2507.6,2507.5,0.39922]
[1729712803804,4.49295941,2507.6,2507.5,0.39922]
[1729712804597,5.20715941,2507.6,2507.5,0.39922]
[1729712805407,5.60635941,2507.6,2507.5,0.39922]
[1729712805599,8.31715941,2507.6,2507.1,0.99821]
[1729712805913,8.71636941,2507.6,2507.5,0.39922]
[1729712806508,5.20715941,2507.6,2507.5,0.39922]
[1729712806709,5.20715941,2507.6,2507.5,0.45388591]
[1729712806909,8.71635941,2507.6,2507.5,0.45388591]
[1729712807211,8.71635941,2507.6,2507.5,0.05466591]
[1729712808009,8.31715941,2507.6,2507.5,0.05466591]
[1729712808213,8.31715941,2507.6,2507.5,0.45388591]
[1729712808912,8.71635941,2507.6,2507.5,0.45388591]
[1729712809217,8.31715941,2507.6,2507.5,0.45388591]
[1729712812422,12.30515941,2507.6,2507.0,3.2078]
[1729712812612,3.11,2507.3,2507.2,0.39927]
[1729712812918,7.56082243,2507.3,2507.2,0.39927]
[1729712813225,4.45082243,2507.3,2507.2,0.39927]
[1729712813523,4.39431885,2507.4,2507.1,0.99821]
[1729712813725,4.39431885,2507.4,2507.3,0.39925]
[1729712814012,0.7142,2507.6,2507.5,0.39922]
[1729712814415,5.16835836,2507.6,2507.5,0.39922]
[1729712819120,4.45415836,2507.6,2507.5,0.39922]
[1729712822219,4.85335836,2507.6,2507.5,0.39922]
[1729712823229,4.45415836,2507.6,2507.5,0.39922]
[1729712823425,4.85335836,2507.6,2507.5,0.39922]
[1729712823625,4.45415836,2507.6,2507.5,0.39922]
[1729712823924,4.85335836,2507.6,2507.5,0.39922]
[1729712825532,0.39923,2507.5,2507.4,0.39922]
[1729712825722,0.6563,2507.5,2507.4,0.39922]
[1729712825925,5.10837939,2507.5,2507.4,0.39922]
[1729712830031,8.61759939,2507.5,2507.4,0.39922]
[1729712830337,0.39927,2507.3,2507.2,0.39926]
[1729712830538,3.11,2507.3,2506.7,2.03194931]
[1729712830835,1.05608,2507.2,2507.1,0.39927]
[1729712831034,0.6568,2507.2,2506.6,1.03359931]
[1729712831238,3.11,2506.9,2506.8,0.39931]
[1729712831535,8.01055128,2506.9,2506.8,0.39931]
[1729712831733,7.61124128,2506.9,2506.8,0.39931]
[1729712831933,7.61124128,2506.9,2506.8,4.38811]
[1729712831934,4.50124128,2506.9,2506.8,4.38811]
[1729712832130,4.50124128,2506.9,2506.8,7.59591]
[1729712832840,4.50124128,2506.9,2506.8,9.08591]
[1729712833239,3.7712,2507.4,2507.3,0.39925]
[1729712833539,5.10243335,2507.4,2507.3,0.39925]
[1729712834942,0.9978,2508.2,2507.3,0.39925]
[1729712834943,3.2078,2508.7,2508.5,0.39905]
[1729712835150,3.2078,2508.7,2508.6,3.50904]
[1729712835342,0.6837,2509.2,2508.6,3.11]
[1729712835544,0.6837,2509.2,2509.0,0.39897]
[1729712835854,4.55988252,2509.1,2508.9,0.39899]
[1729712836152,4.55988252,2509.1,2508.7,26.1078]
[1729712836355,0.6807,2509.0,2508.9,0.39899]
[1729712836654,4.8741414,2509.0,2508.9,0.39899]
[1729712838145,0.399,2508.9,2508.7,22.9]
[1729712838345,0.399,2508.9,2508.2,1.03642798]
[1729712838346,3.11,2508.8,2508.2,1.49]
[1729712838553,4.6475,2508.7,2508.2,1.49]
[1729712838948,4.60616897,2508.6,2508.4,0.39907]
[1729712839950,4.60616897,2508.6,2508.3,0.39909]
[1729712840151,4.60616897,2508.6,2508.5,0.39906]
[1729712844352,4.60616897,2508.6,2508.5,0.39906]
[1729712844645,4.60616897,2508.6,2508.5,0.45369235]
[1729712844848,8.59256897,2508.6,2508.5,0.05463235]
[1729712845154,7.81396897,2508.6,2508.5,0.39906]
[1729712845349,4.60616897,2508.6,2508.5,0.39906]
[1729712845652,4.60616897,2508.6,2508.5,23.29906]
[1729712846757,4.60616897,2508.6,2508.0,4.20563]
[1729712846758,0.39908,2508.4,2508.0,3.2078]
[1729712847061,11.12336396,2508.3,2508.0,1.489]
[1729712847248,11.12336396,2508.3,2508.2,0.39911]
[1729712847852,15.11056396,2508.3,2507.8,22.9]
[1729712848049,0.39917,2507.8,2507.4,0.39923]
[1729712848252,1.75759,2507.7,2507.6,0.3992]
[1729712848450,5.87019933,2507.7,2507.6,0.3992]
[1729712848651,1.3584,2507.7,2507.6,0.3992]
[1729712848855,5.87019933,2507.7,2507.6,0.3992]
[1729712850054,4.51179933,2507.7,2507.6,4.3872]
[1729712850248,1.3628,2508.4,2508.3,0.39909]
[1729712850651,4.11435204,2508.4,2508.3,0.39909]
[1729712852448,4.51342204,2508.4,2508.3,0.39909]
[1729712852649,4.11435204,2508.4,2508.3,0.39909]
[1729712854148,8.10075204,2508.4,2507.5,3.7977]
[1729712854351,3.50915,2508.0,2507.6,1.489]
[1729712854551,0.39917,2507.8,2507.7,0.39918]
[1729712854855,4.16162759,2507.8,2507.4,24.389]
[1729712855057,4.16162759,2507.8,2507.4,23.29923]
[1729712855058,3.50922,2507.5,2507.4,23.29923]
[1729712855257,3.11,2507.5,2507.4,23.29923]
[1729712855556,4.37476574,2507.5,2507.4,23.29923]
[1729712856062,4.37476574,2507.6,2507.5,0.39922]
[1729712856364,3.7754,2507.7,2507.6,0.3992]
[1729712856654,8.07779442,2507.7,2507.6,0.3992]
[1729712862764,0.39922,2507.5,2507.4,23.29922]
[1729712862960,0.39922,2507.5,2506.8,4.20609]
[1729712862961,3.11,2507.5,2506.8,4.20609]
[1729712863163,3.11,2507.2,2507.1,0.39928]
[1729712863355,0.39926,2507.3,2507.1,0.39928]
[1729712863553,4.40434918,2507.2,2507.1,0.39928]
[1729712864564,4.33750779,2507.3,2506.8,3.2078]
[1729712864752,4.33750779,2507.3,2507.2,0.39927]
[1729712864954,0.7015,2507.4,2507.3,0.39925]
[1729712865366,5.27668111,2507.4,2507.3,0.39925]
[1729712866063,4.57518111,2507.4,2507.3,0.39925]
[1729712866464,3.8798,2507.6,2507.4,0.39923]
[1729712866465,4.54675195,2507.5,2507.4,0.39923]
[1729712866654,4.279,2507.6,2507.4,22.9]
[1729712866967,3.8798,2507.6,2507.5,0.39922]
[1729712867364,8.24554203,2507.6,2507.5,0.39922]
[1729712867963,8.64474203,2507.6,2507.5,0.39922]
[1729712868261,11.35554203,2507.6,2507.4,22.9]
[1729712868460,11.75475203,2507.6,2507.5,0.39922]
[1729712871160,11.35554203,2507.6,2507.4,22.9]